bitfinex-derivatives/quotes_ETHF0:USTF0_20250321
["timestamp","ask_amount","ask_price","bid_price","bid_amount"]
[1742561105930,1.0247,1952.8,1952.7,1.02466]
[1742561106123,3.2078,1952.8,1952.6,1.02472]
[1742561106321,4.2325,1952.8,1952.7,1.02471]
[1742561106522,1.02486,1952.5,1952.4,1.02487]
[1742561106731,4.23258,1952.6,1952.5,1.02476]
[1742561106930,2.56178,1952.8,1952.7,1.02471]
[1742561106931,3.2078,1952.8,1952.7,1.02471]
[1742561107127,3.2078,1952.8,1952.4,5.12436]
[1742561107128,28.03349263,1953.1,1953.0,1.02455]
[1742561107329,20.80894263,1953.1,1953.0,1.02455]
[1742561108125,18.62564263,1953.1,1953.0,41.82455]
[1742561108329,21.83344263,1953.1,1953.0,1.02455]
[1742561108530,1.02461,1953.0,1952.9,1.02457]
[1742561108929,1.02461,1953.0,1952.9,41.82457]
[1742561109124,1.02476,1952.7,1952.6,1.02471]
[1742561109330,4.23256,1952.7,1952.6,1.02471]
[1742561109726,3.2078,1952.7,1952.6,1.02471]
[1742561110032,4.23251,1952.7,1952.6,1.02471]
[1742561110929,1.02481,1952.5,1952.4,41.82483]
[1742561111132,4.23261,1952.5,1952.4,1.02483]
[1742561111328,5.3408,1952.8,1952.1,5.12514]
[1742561111633,5.3408,1952.8,1952.7,1.02471]
[1742561112134,3.2078,1952.9,1952.8,1.02466]
[1742561112530,3.2078,1952.9,1952.8,1.49046]
[1742561113734,24.68564263,1953.2,1952.9,3.58601]
[1742561113735,3.2078,1953.1,1952.9,3.58601]
[1742561113934,3.2078,1953.1,1953.0,1.02455]
[1742561115030,3.2078,1953.1,1952.9,1.02458]
[1742561115232,4.23233,1953.1,1952.9,1.02458]
[1742561115427,4.23233,1953.1,1953.0,1.02455]
[1742561115838,3.2078,1953.1,1953.0,1.02455]
[1742561116931,17.60114263,1953.2,1953.1,1.0245]
[1742561117130,20.80894263,1953.2,1953.1,1.0245]
[1742561117327,17.60114263,1953.2,1953.1,1.0245]
[1742561118641,17.60114263,1953.2,1953.1,4.2323]
[1742561118830,17.60114263,1953.2,1953.1,1.0245]
[1742561119036,17.60114263,1953.2,1953.1,41.8245]
[1742561119534,17.60114263,1953.2,1953.1,1.0245]
[1742561119739,4.2322,1953.3,1953.1,1.0245]
[1742561119941,3.2078,1953.3,1953.1,1.0245]
[1742561120246,4.2322,1953.3,1953.0,40.80769764]
[1742561120439,1.02446,1953.2,1953.0,1.03222764]
[1742561120840,15.4068,1953.1,1953.0,0.00769764]
[1742561121030,3.2078,1953.1,1953.0,1.03224764]
[1742561121231,4.23221,1953.3,1953.1,1.02447]
[1742561121437,1.02445,1953.2,1953.0,0.00769764]
[1742561121732,3.2078,1953.1,1953.0,1.03224764]
[1742561122739,3.2078,1953.1,1952.9,43.36148]
[1742561122740,0.96775236,1953.0,1952.9,40.8]
[1742561122935,0.96775236,1953.0,1952.9,41.8246]
[1742561123741,11.50415236,1953.0,1952.9,41.8246]
[1742561125140,0.96775236,1953.0,1952.9,41.8246]
[1742561127547,0.96775236,1953.0,1952.9,52.171]
[1742561128544,1.02437,1953.4,1952.9,52.171]
[1742561128545,20.80894263,1953.5,1953.4,1.02434]
[1742561128740,31.82134263,1953.5,1953.1,2.56117]
[1742561129040,3.2078,1953.2,1953.1,1.0245]
[1742561129247,4.23225,1953.2,1953.1,1.0245]
[1742561129646,3.2078,1953.2,1953.1,1.0245]
[1742561129842,4.23225,1953.2,1953.1,1.0245]
[1742561130037,15.24465,1953.2,1953.1,1.0245]
[1742561130344,14.2202,1953.2,1953.1,1.0245]
[1742561131549,3.2078,1953.2,1953.1,1.0245]
[1742561133141,4.23225,1953.2,1953.1,1.0245]
[1742561134951,3.2078,1953.2,1953.1,1.0245]
[1742561136543,17.60114263,1953.5,1953.4,1.02434]
[1742561136950,16.24524263,1953.5,1953.4,14.91494]
[1742561137652,16.24524263,1953.5,1953.4,11.70714]
[1742561138552,16.24524263,1953.5,1953.4,1.02434]
[1742561139254,16.24524263,1953.5,1953.4,12.38404]
[1742561139854,22.76462515,1953.8,1953.4,12.38404]
[1742561140054,19.55682515,1953.8,1953.7,1.02419]
[1742561142154,19.55682515,1953.8,1953.7,11.72649]
[1742561142350,19.55682515,1953.8,1953.7,10.7023]
[1742561142554,19.55682515,1953.8,1953.7,11.72649]
[1742561142860,22.76462515,1953.8,1953.6,1.02423]
[1742561143057,10.107,1953.7,1953.2,10.7023]
[1742561143261,3.2078,1953.6,1953.4,1.02432]
[1742561143462,3.2078,1953.6,1953.5,1.02429]
[1742561143674,8.7308,1953.6,1953.5,1.02429]
[1742561145072,8.7308,1953.6,1953.3,1.02435]
[1742561145268,3.2078,1953.4,1952.9,2.56152]
[1742561145567,3.2078,1953.4,1953.3,1.02439]
[1742561145769,8.7308,1953.6,1953.3,40.8]
[1742561145960,3.2078,1953.4,1953.3,41.82439]
[1742561146165,9.75505,1953.6,1953.5,1.02429]
[1742561146374,1.02434,1953.4,1953.0,11.3665]
[1742561146563,3.2078,1953.2,1953.1,1.0245]
[1742561146971,3.2078,1953.2,1953.1,41.8245]
[1742561147468,14.502,1953.2,1953.1,41.8245]
[1742561147775,5.481,1953.3,1953.2,1.02445]
[1742561149070,5.481,1953.3,1953.2,12.05235]
[1742561151162,5.481,1953.3,1953.2,52.85235]
[1742561152071,19.889,1953.6,1953.5,1.02429]
[1742561152376,20.91324,1953.6,1953.5,1.02429]
[1742561152573,1.02434,1953.4,1953.3,1.02436]
[1742561152873,1.02439,1953.3,1953.2,40.8]
[1742561153066,17.62099,1953.3,1953.2,41.82445]
[1742561153774,16.5966,1953.3,1953.2,41.82445]
[1742561153975,3.2078,1953.4,1953.3,1.02439]
[1742561154174,4.23214,1953.4,1953.3,1.02439]
[1742561155470,3.2078,1953.4,1953.3,1.02439]
[1742561155769,4.23214,1953.4,1953.3,1.02439]
[1742561155975,1.02439,1953.3,1953.2,41.82441]
[1742561156770,3.2078,1953.4,1953.3,1.02439]
[1742561156982,8.5088,1953.4,1953.3,1.02439]
[1742561157469,9.53314,1953.4,1953.3,1.02439]
[1742561158470,8.5088,1953.4,1953.3,1.02439]
[1742561158972,8.5088,1953.4,1953.2,41.82441]
[1742561159275,8.5088,1953.4,1953.3,1.02439]
[1742561159664,3.2078,1953.4,1953.3,1.02439]
[1742561159875,5.263,1953.5,1953.4,1.02434]
[1742561160077,6.28729,1953.5,1953.4,1.02434]
[1742561160272,23.78876515,1953.8,1953.5,1.02429]
[1742561160479,23.78875515,1953.8,1953.7,1.02419]
[1742561160777,22.76462515,1953.8,1953.7,1.02419]
[1742561160964,19.55682515,1953.8,1953.7,1.02419]
[1742561162469,19.55682515,1953.8,1953.7,12.39779]
[1742561163578,19.55682515,1953.8,1953.7,1.02419]
[1742561165177,19.55682515,1953.8,1953.3,53.11177]
[1742561165371,3.2078,1953.7,1953.2,53.8721]
[1742561165570,3.2078,1953.5,1953.4,1.02434]
[1742561165974,1.02435,1953.4,1953.3,1.02436]
[1742561166169,1.02439,1953.3,1953.2,40.8]
[1742561166373,1.02439,1953.3,1953.1,1.02446]
[1742561166374,1.02445,1953.2,1953.1,1.02446]
[1742561166773,3.2078,1953.3,1953.1,40.8]
[1742561166975,1.02445,1953.2,1953.1,41.82445]
[1742561167775,4.23221,1953.3,1953.2,1.02445]
[1742561167977,1.02445,1953.2,1953.1,41.82447]
[1742561168173,1.02445,1953.2,1953.1,40.8]
[1742561168483,1.0246,1952.9,1952.8,0.00769764]
[1742561168783,9.3794,1952.9,1952.8,1.03235764]
[1742561168979,9.3794,1952.9,1952.8,41.83235764]
[1742561169381,8.3548,1952.9,1952.8,41.83235764]
[1742561169569,13.0558,1953.1,1953.0,1.02455]
[1742561170269,3.2078,1953.1,1953.0,1.02455]
[1742561170876,1.02457,1953.0,1952.8,41.83231764]
[1742561171182,4.2324,1952.9,1952.8,40.80769764]
[1742561171578,14.4356,1952.9,1952.8,41.83235764]
[1742561172171,3.2078,1952.9,1952.8,41.83235764]
[1742561172484,13.0558,1953.1,1953.0,1.02455]
[1742561173785,1.0246,1952.9,1952.8,40.80769764]
[1742561173979,9.3274,1952.9,1952.8,40.80769764]
[1742561174286,9.3274,1952.9,1952.8,0.00769764]
[1742561174482,1.02472,1952.7,1952.6,1.02472]
[1742561174680,4.23252,1952.7,1952.6,1.02472]
[1742561174885,4.23252,1952.7,1952.6,41.82472]
[1742561175285,3.2078,1952.7,1952.6,41.82472]
[1742561175483,8.3028,1952.9,1952.8,1.02466]
[1742561175878,5.095,1952.9,1952.8,1.02466]
[1742561176180,9.3274,1952.9,1952.8,1.02466]
[1742561176374,1.02466,1952.8,1952.7,12.03377]
[1742561176588,11.88386,1952.8,1952.7,1.02467]
[1742561176789,1.02471,1952.7,1952.6,40.8]
[1742561177082,1.02471,1952.7,1952.5,0.00767754]
[1742561177083,1.02476,1952.6,1952.5,0.00767754]
[1742561177277,16.78736,1952.6,1952.5,1.03248754]
[1742561177678,16.78736,1952.6,1952.5,41.83248754]
[1742561177873,16.78736,1952.6,1952.5,40.80767754]
[1742561178283,19.28736,1952.6,1952.5,0.00767754]
[1742561178481,29.13536,1952.6,1952.5,0.00767754]
[1742561178890,1.0249,1952.4,1952.3,1.02489]
[1742561179184,3.2078,1952.4,1952.3,1.02489]
[1742561179781,13.9114,1952.4,1952.3,1.02489]
[1742561180480,14.93627,1952.4,1952.3,1.02489]
[1742561180883,9.29157,1952.6,1952.2,40.80767754]
[1742561181088,9.29157,1952.6,1952.5,1.02481]
[1742561181590,9.29156,1952.6,1952.5,1.02481]
[1742561181779,8.2668,1952.6,1952.5,1.02481]
[1742561182090,1.02487,1952.5,1952.4,1.02483]
[1742561182289,12.42917,1952.5,1952.4,1.02483]
[1742561182792,1.02491,1952.4,1952.3,1.02487]
[1742561182992,4.23271,1952.4,1952.3,1.02487]
[1742561183186,1.02492,1952.3,1952.2,41.83260754]
[1742561183391,11.56862,1952.3,1952.2,41.83260754]
[1742561183688,26.40562,1952.3,1952.2,41.83264754]
[1742561184096,26.40562,1952.3,1952.2,40.80767754]
[1742561184393,26.40562,1952.3,1952.2,41.83264754]
[1742561184593,26.40562,1952.3,1952.2,40.80767754]
[1742561184990,26.40562,1952.3,1952.2,41.83264754]
[1742561185889,25.3807,1952.3,1952.2,41.83264754]
[1742561186189,9.848,1952.3,1952.2,41.83264754]
[1742561187884,10.87292,1952.3,1952.2,41.83264754]
[1742561188086,1.02492,1952.3,1952.2,41.83264754]
[1742561188295,11.98152,1952.3,1952.2,41.83264754]
[1742561188498,10.9566,1952.3,1952.2,41.83264754]
[1742561188692,14.08069,1952.4,1952.3,1.02492]
[1742561188894,25.03729,1952.4,1952.3,1.02492]
[1742561189093,14.08069,1952.4,1952.3,1.02492]
[1742561189294,9.848,1952.4,1952.3,12.27972]
[1742561189490,3.2078,1952.6,1952.5,1.02481]
[1742561189692,27.64257351,1952.9,1952.6,2.5618]
[1742561190000,17.79457351,1952.9,1952.8,1.02466]
[1742561190893,11.20663351,1952.9,1952.8,1.02466]
[1742561191095,3.51e-06,1952.9,1952.8,4.23246]
[1742561191486,19.78044272,1953.1,1952.8,5.7078]
[1742561191791,18.7627,1953.7,1953.4,1.02434]
[1742561192098,18.7627,1953.7,1953.6,1.02424]
[1742561192099,3.2078,1953.7,1953.6,1.02424]
[1742561192598,1.02424,1953.6,1953.5,11.0044]
[1742561192786,1.02424,1953.6,1953.5,0.00767754]
[1742561192991,11.47434,1953.6,1953.5,0.00767754]
[1742561193500,11.47434,1953.6,1953.5,1.03196754]
[1742561193694,3.2078,1953.7,1953.6,1.02424]
[1742561193899,1.02424,1953.6,1953.5,1.03192754]
[1742561194298,16.35434,1953.6,1953.5,0.00767754]
[1742561194601,16.35434,1953.6,1953.5,1.03196754]
[1742561194804,4.88,1953.6,1953.5,1.03196754]
[1742561195294,1.02447,1953.3,1952.9,40.8]
[1742561195502,4.23235,1953.0,1952.9,1.0246]
[1742561195702,14.08035,1953.0,1952.9,1.0246]
[1742561195999,1.02467,1952.9,1952.8,1.02462]
[1742561196199,1.02474,1952.8,1952.7,1.02467]
[1742561196394,1.02482,1952.6,1952.5,1.02477]
[1742561196596,4.23262,1952.6,1952.5,1.02477]
[1742561196790,12.38651,1952.7,1952.6,1.02476]
[1742561196996,12.39418754,1952.7,1952.6,1.02476]
[1742561197197,1.02481,1952.6,1952.5,1.02477]
[1742561197399,4.23261,1952.6,1952.5,1.02477]
[1742561197792,3.2078,1952.6,1952.4,51.52337754]
[1742561197997,12.38661,1952.5,1952.4,41.83250754]
[1742561198404,11.3618,1952.5,1952.4,41.83250754]
[1742561198606,13.0558,1952.6,1952.4,41.83250754]
[1742561198607,13.0558,1952.6,1952.5,1.02481]
[1742561198992,13.0558,1952.6,1952.5,11.51461]
[1742561201509,9.848,1952.6,1952.5,11.51461]
[1742561201703,8.75468,1952.6,1952.5,11.51461]
[1742561202297,11.96248,1952.6,1952.5,11.51461]
[1742561202708,11.96248,1952.6,1952.5,1.02481]
[1742561202907,22.61458,1952.6,1952.5,1.02481]
[1742561203899,8.75468,1952.6,1952.5,1.02481]
[1742561204099,8.75468,1952.6,1952.5,11.60251]
[1742561206013,12.98724,1952.6,1952.5,1.02481]
[1742561206206,11.96248,1952.6,1952.5,1.02481]
[1742561206711,8.75468,1952.6,1952.5,11.33871]
[1742561208613,0.00767754,1952.7,1952.6,1.02476]
[1742561208915,3.21547754,1952.7,1952.6,1.02476]
[1742561209621,4.24018754,1952.7,1952.6,1.02476]
[1742561209928,3.21547754,1952.7,1952.6,1.02476]
[1742561210216,7.95047754,1952.7,1952.6,1.02476]
[1742561210814,7.95047754,1952.7,1952.4,5.13180754]
[1742561211020,12.26786,1952.6,1952.5,1.02481]
[1742561211213,15.47566,1952.6,1952.5,1.02481]
[1742561213025,11.2431,1952.6,1952.5,1.02481]
[1742561213209,13.49735754,1952.7,1952.6,1.02476]
[1742561213614,24.86105754,1952.7,1952.6,1.02476]
[1742561213815,24.86105754,1952.7,1952.6,41.82476]
[1742561214418,16.10637754,1952.7,1952.6,41.82476]
[1742561217722,17.13108754,1952.7,1952.6,41.82476]
[1742561217919,17.13108754,1952.7,1952.6,1.02476]
[1742561219624,16.10637754,1952.7,1952.6,1.02476]
[1742561220123,0.00767754,1952.7,1952.6,1.02476]
[1742561220420,7.54e-06,1952.7,1952.6,3.52476]
[1742561220620,7.54e-06,1952.7,1952.6,8.15576]
[1742561221025,7.54e-06,1952.7,1952.6,48.95576]
[1742561221220,7.54e-06,1952.7,1952.6,46.45576]
[1742561221420,7.54e-06,1952.7,1952.6,41.82476]
[1742561222433,1.02471754,1952.7,1952.6,1.02476]
[1742561222623,14.52439754,1952.7,1952.4,0.00767754]
[1742561222823,4.23261,1952.5,1952.4,1.03248754]
[1742561223424,15.10521,1952.5,1952.4,1.03248754]
[1742561223625,15.10521,1952.5,1952.4,0.00767754]
[1742561224325,15.10521,1952.5,1952.4,1.03254754]
[1742561224724,15.10521,1952.5,1952.4,0.00767754]
[1742561224926,1.02487,1952.4,1952.3,1.0249]
[1742561225125,11.89747,1952.4,1952.3,1.0249]
[1742561225425,20.65215,1952.4,1952.2,40.8]
[1742561225629,8.82472,1952.3,1952.2,41.82493]
[1742561225821,28.0768,1952.3,1952.2,41.82493]
[1742561226729,28.0768,1952.3,1952.2,1.02493]
[1742561226927,27.05188,1952.3,1952.2,1.02493]
[1742561227229,27.05188,1952.3,1952.2,41.82493]
[1742561227430,13.34668,1952.3,1952.2,41.82493]
[1742561227829,3.2078,1952.5,1952.4,1.02487]
[1742561228424,3.2078,1952.5,1952.4,41.82487]
[1742561228620,20.27681754,1952.7,1952.4,41.82487]
[1742561228922,19.25208754,1952.7,1952.6,1.02476]
[1742561229319,22.45988754,1952.7,1952.6,1.02476]
[1742561229624,8.75468754,1952.7,1952.6,1.02476]
[1742561229826,7.54e-06,1952.7,1952.6,1.02476]
[1742561230527,7.54e-06,1952.7,1952.6,3.52476]
[1742561231034,7.54e-06,1952.7,1952.6,44.32476]
[1742561232124,11.96248,1953.5,1953.4,1.02434]
[1742561232324,11.96248,1953.9,1953.8,1.02413]
[1742561232531,3.2078,1953.9,1953.8,1.02413]
[1742561235234,0.00767754,1954.0,1953.9,1.02408]
[1742561235423,3.21547754,1954.0,1953.9,1.02408]
[1742561235824,3.21547754,1954.0,1953.7,0.00767754]
[1742561236137,3.2078,1953.8,1953.7,1.03186754]
[1742561236726,10.9795,1953.9,1953.8,1.02413]
[1742561238029,3.21547754,1954.0,1953.9,1.02408]
[1742561239636,0.00767754,1954.0,1953.9,1.02408]
[1742561240036,7.54e-06,1954.0,1953.9,1.02408]
[1742561240537,7.54e-06,1954.0,1953.9,11.74488]
[1742561241734,7.54e-06,1954.0,1953.9,14.24488]
[1742561241923,3.2078,1954.7,1954.6,1.02371]
[1742561242329,1.02371,1954.6,1954.1,10.22064]
[1742561242529,3.2078,1954.5,1954.4,1.02379]
[1742561242736,11.2233,1954.6,1954.5,1.02377]
[1742561242936,11.2233,1954.6,1954.5,41.82377]
[1742561244133,11.97015754,1954.7,1954.6,1.02371]
[1742561244334,22.42035754,1954.7,1954.6,1.02371]
[1742561245135,23.44401754,1954.7,1954.6,1.02371]
[1742561245328,22.42035754,1954.7,1954.3,2.55962]
[1742561245533,20.23624754,1954.7,1954.6,1.02371]
[1742561245841,1.02374,1954.6,1954.5,1.02373]
[1742561246137,10.4502,1954.6,1954.5,1.02373]
[1742561247629,8.76235754,1954.7,1954.6,1.02371]
[1742561247835,11.97015754,1954.7,1954.6,1.02371]
[1742561248034,8.76235754,1954.7,1954.6,1.02371]
[1742561248239,11.97015754,1954.7,1954.6,1.02371]
[1742561251145,1.02372,1954.6,1954.5,1.02372]
[1742561251335,11.40192,1954.6,1954.5,1.02372]
[1742561251542,14.7502,1954.6,1954.2,11.2173]
[1742561251740,20.4297,1954.6,1954.5,1.02377]
[1742561251945,23.6375,1954.6,1954.5,1.02377]
[1742561252136,24.66121,1954.6,1954.5,1.02377]
[1742561252333,23.6375,1954.6,1954.2,13.777]
[1742561252647,23.6375,1954.6,1954.5,1.02377]
[1742561253441,24.66121,1954.6,1954.5,1.02377]
[1742561253742,1.0238,1954.5,1954.4,1.02378]
[1742561253944,10.7626,1954.5,1954.4,1.02378]
[1742561254145,11.78637,1954.5,1954.4,1.02378]
[1742561254639,10.7626,1954.5,1954.4,1.02378]
[1742561255347,11.78637,1954.5,1954.4,1.02378]
[1742561256140,10.7626,1954.5,1954.4,1.02378]
[1742561256341,11.78637,1954.5,1954.4,1.02378]
[1742561257236,9.78604754,1954.7,1954.6,1.02371]
[1742561257444,8.76235754,1954.7,1954.6,1.02371]
[1742561258549,0.00767754,1954.7,1954.6,1.02371]
[1742561259250,7.54e-06,1954.7,1954.6,1.02371]
[1742561263650,7.54e-06,1954.7,1954.6,3.52371]
[1742561264450,7.54e-06,1954.7,1954.6,1.02371]
[1742561267643,4.23146754,1954.7,1954.6,1.02371]
[1742561267841,3.20780754,1954.7,1954.4,2.55955]
[1742561268041,11.2032,1954.6,1954.5,1.02377]
[1742561268451,3.20780754,1954.7,1954.6,1.02371]
[1742561268651,4.23146754,1954.7,1954.6,1.02371]
[1742561268959,4.23147754,1954.7,1954.4,2.55943]
[1742561269256,4.23147754,1954.7,1954.5,1.02372]
[1742561269257,1.02371,1954.6,1954.5,1.02372]
[1742561269447,8.53850754,1954.7,1954.5,1.02372]
[1742561269647,1.02372,1954.6,1954.5,1.02372]
[1742561269946,1.02378,1954.5,1954.2,2.55979]
[1742561270149,7.5068,1954.4,1954.1,1.02394]
[1742561270349,7.5068,1954.4,1954.1,1.02393]
[1742561270350,3.2078,1954.2,1954.1,1.02393]
[1742561270960,16.26148,1954.4,1954.3,1.02387]
[1742561271361,16.26148,1954.4,1954.0,43.36004]
[1742561271554,10.576,1954.3,1954.2,1.02388]
[1742561272457,11.59987,1954.3,1954.2,1.02388]
[1742561272660,1.02393,1954.2,1954.1,1.02393]
[1742561272860,4.23173,1954.2,1954.1,1.02393]
[1742561273053,3.2078,1954.2,1954.1,1.02393]
[1742561273255,4.23172,1954.2,1954.1,1.02393]
[1742561273857,1.02398,1954.1,1954.0,41.82398]
[1742561274058,10.3094,1954.1,1954.0,41.82398]
[1742561275967,11.33338,1954.1,1954.0,41.82398]
[1742561276859,10.3094,1954.1,1954.0,41.82398]
[1742561277363,11.33338,1954.1,1954.0,41.82398]
[1742561277868,15.57738,1954.1,1954.0,41.82398]
[1742561278069,14.5534,1954.1,1954.0,41.82398]
[1742561278265,10.3094,1954.1,1954.0,41.82398]
[1742561279664,11.96248,1954.4,1954.3,1.02387]
[1742561279864,23.7371,1954.4,1954.3,1.02387]
[1742561280562,22.71328,1954.4,1954.3,1.02387]
[1742561280962,23.7371,1954.4,1954.3,1.02387]
[1742561281562,22.71328,1954.4,1954.3,1.02387]
[1742561282771,13.9586,1954.4,1954.3,1.02387]
[1742561283571,14.98242,1954.4,1954.3,1.02387]
[1742561283972,1.02394,1954.3,1954.2,1.0239]
[1742561284267,10.7752,1954.3,1954.2,1.0239]
[1742561287272,11.79907,1954.3,1954.2,1.0239]
[1742561287873,10.7752,1954.3,1954.2,1.0239]
[1742561288466,3.2078,1954.6,1954.2,2.55977]
[1742561288666,14.0022,1954.6,1954.5,1.02377]
[1742561289268,10.7944,1954.6,1954.5,1.02377]
[1742561289570,7.54e-06,1954.7,1954.6,1.02371]
[1742561289766,11.51676754,1954.7,1954.6,1.02371]
[1742561289975,1.02373,1954.6,1954.5,1.02373]
[1742561290368,11.51683,1954.6,1954.5,1.02373]
[1742561290675,10.4931,1954.6,1954.5,1.02373]
[1742561295082,10.4931,1954.6,1954.4,1.02378]
[1742561295375,3.2078,1954.5,1954.2,2.55978]
[1742561295582,11.47066,1954.4,1954.3,1.02383]
[1742561295785,15.60266,1954.4,1954.3,1.02383]
[1742561297171,1.02391,1954.3,1954.2,1.02388]
[1742561297375,14.67851,1954.3,1954.2,1.02388]
[1742561298079,4.132,1954.4,1954.3,1.02387]
[1742561298387,14.5658,1954.6,1954.5,1.02377]
[1742561298682,10.4468,1954.6,1954.5,1.02377]
[1742561298870,3.2078,1954.7,1954.6,1.02371]
[1742561299073,8.75468,1955.3,1954.6,1.02371]
[1742561299074,3.2078,1955.2,1955.1,1.02345]
[1742561299269,3.2078,1955.2,1954.9,13.72466]
[1742561299474,1.02344,1955.2,1955.1,1.02345]
[1742561299674,1.02345,1955.1,1955.0,41.8235]
[1742561299876,3.2078,1955.2,1955.1,1.02345]
[1742561300076,4.2312,1955.2,1955.1,1.02345]
[1742561300283,4.2312,1955.2,1955.1,41.82345]
[1742561300880,3.2078,1955.2,1955.1,41.82345]
[1742561301181,4.2312,1955.2,1955.1,41.82345]
[1742561302276,14.6273,1955.2,1955.1,41.82345]
[1742561302477,23.38198,1955.2,1955.1,41.82345]
[1742561302983,23.38198,1955.2,1955.1,1.02345]
[1742561303578,22.35858,1955.2,1955.1,1.02345]
[1742561303779,23.38198,1955.2,1955.1,1.02345]
[1742561304176,12.98588,1955.2,1955.1,1.02345]
[1742561304382,22.35858,1955.2,1955.1,1.02345]
[1742561305183,23.38198,1955.2,1955.1,1.02345]
[1742561305388,22.35858,1955.2,1955.1,1.02345]
[1742561305583,8.75468,1955.2,1955.1,1.02345]
[1742561308190,14.5208,1955.4,1955.3,1.02335]
[1742561308391,11.96248,1955.6,1955.5,1.02324]
[1742561308789,3.2078,1956.3,1956.0,1.02298]
[1742561308992,8.75468,1956.4,1956.1,1.0229]
[1742561308993,3.2078,1956.2,1956.1,1.0229]
[1742561309198,23.78486,1956.2,1956.1,1.0229]
[1742561309991,6.42407,1956.4,1956.3,1.02282]
[1742561310382,10.57507,1956.4,1956.3,1.02282]
[1742561310891,10.57507,1956.4,1956.0,0.00767754]
[1742561310892,1.02293,1956.1,1956.0,0.00767754]
[1742561311092,8.37873,1956.1,1956.0,1.03065754]
[1742561311292,7.3558,1956.1,1956.0,1.03065754]
[1742561311687,4.148,1956.1,1956.0,1.03065754]
[1742561312194,4.23062,1956.3,1956.2,1.02288]
[1742561313292,3.2078,1956.3,1956.2,1.02288]
[1742561313596,1.02293,1956.2,1956.1,1.02288]
[1742561314092,1.02293,1956.1,1956.0,1.03062754]
[1742561314291,4.23073,1956.1,1956.0,1.03062754]
[1742561314590,3.2078,1956.1,1956.0,1.03065754]
[1742561314797,13.50878,1956.2,1956.1,1.02293]
[1742561314987,12.4859,1956.2,1956.1,1.02293]
[1742561316792,13.50878,1956.2,1956.1,1.02293]
[1742561316987,22.26346,1956.2,1956.1,1.02293]
[1742561318386,21.24058,1956.2,1956.1,1.02293]
[1742561319189,8.75468,1956.2,1956.1,1.02293]
[1742561320898,8.75468,1956.2,1956.1,11.88203]
[1742561322896,13.89247,1956.4,1956.3,1.02282]
[1742561323196,24.84427,1956.4,1956.3,1.02282]
[1742561323393,26.37842,1956.4,1956.1,10.8591]
[1742561323594,3.2078,1956.2,1956.0,0.00767754]
[1742561323795,4.23073,1956.2,1956.1,1.02293]
[1742561323995,7.3098,1956.2,1956.1,1.02293]
[1742561324298,12.98525,1956.4,1956.3,1.02282]
[1742561324598,17.08525,1956.4,1956.3,1.02282]
[1742561326600,16.06248,1956.4,1956.3,1.02282]
[1742561326800,17.08525,1956.4,1956.3,1.02282]
[1742561327193,16.06248,1956.4,1956.2,11.2986]
[1742561327401,1.02293,1956.1,1956.0,1.03063754]
[1742561327604,1.02293,1956.1,1956.0,0.00767754]
[1742561327605,8.31473,1956.1,1956.0,0.00767754]
[1742561328106,1.02309,1955.8,1955.7,1.0231]
[1742561328602,12.83768,1955.9,1955.8,1.02309]
[1742561328796,13.86071,1955.9,1955.8,1.02309]
[1742561328996,12.83768,1955.9,1955.8,1.02309]
[1742561330305,8.75468,1955.9,1955.8,1.02309]
[1742561331904,3.21547754,1956.0,1955.9,1.02303]
[1742561332101,0.00767754,1956.0,1955.9,1.02303]
[1742561332302,0.00767754,1956.0,1955.9,11.50923]
[1742561335904,4.2305,1956.6,1955.9,11.50923]
[1742561335905,11.96248,1956.6,1956.5,1.02272]
[1742561336103,4.23047,1956.6,1956.5,1.02272]
[1742561336302,1.02272,1956.5,1956.4,11.77463]
[1742561336503,3.2078,1956.6,1956.5,1.02272]
[1742561336709,17.20903,1956.7,1956.6,1.02267]
[1742561338505,17.19803,1956.7,1956.6,1.02267]
[1742561338704,1.02273,1956.6,1956.5,1.02269]
[1742561339712,25.95272,1956.7,1956.6,1.02267]
[1742561340911,36.81352,1956.7,1956.6,1.02267]
[1742561342811,1.02276,1956.5,1956.4,1.02272]
[1742561343208,4.2305,1956.6,1956.5,1.02272]
[1742561343511,1.02275,1956.5,1956.4,1.02273]
[1742561343814,1.02277,1956.4,1956.3,11.50537]
[1742561344004,8.25457,1956.4,1956.3,1.02277]
[1742561345110,5.04677,1956.4,1956.3,1.02277]
[1742561345305,1.02288,1956.3,1956.2,1.02285]
[1742561346012,4.024,1956.4,1956.3,1.02282]
[1742561346311,5.04677,1956.4,1956.3,1.02282]
[1742561346813,4.024,1956.4,1956.3,1.02282]
[1742561347608,4.024,1956.4,1956.1,13.43603]
[1742561347809,4.024,1956.4,1956.3,1.02282]
[1742561349304,8.75468,1956.5,1956.4,1.02277]
[1742561349501,8.75468,1956.5,1956.4,4.23057]
[1742561349911,8.75468,1956.5,1956.4,45.03057]
[1742561352213,13.77323,1956.9,1956.8,1.02256]
[1742561352805,12.75068,1956.9,1956.8,1.02256]
[1742561354015,13.77319,1956.9,1956.8,1.02256]
[1742561355112,13.77319,1956.9,1956.4,43.35693]
[1742561355113,15.30696,1956.9,1956.4,43.35693]
[1742561355310,4.23047,1956.6,1956.5,1.02272]
[1742561355613,11.96248,1956.8,1956.6,1.02263]
[1742561356010,1.02261,1956.7,1956.6,1.02263]
[1742561356208,11.96248,1956.8,1956.7,1.02261]
[1742561356411,8.75468,1956.8,1956.7,1.02261]
[1742561356808,9.77724,1956.8,1956.7,1.02261]
[1742561357316,8.75468,1956.8,1956.7,1.02261]
[1742561357717,8.75468,1956.8,1956.6,1.02264]
[1742561357915,1.02265,1956.7,1956.6,1.02264]